bitfinex/quotes_BTCUSD_20251212
["timestamp","ask_amount","ask_price","bid_price","bid_amount"]
[1765562325032,0.0001162,90110.0,90108.0,0.04137241]
[1765562325394,0.0001162,90110.0,90108.0,0.04037241]
[1765562325594,0.0001162,90110.0,90109.0,0.001]
[1765562326019,0.0001162,90110.0,90109.0,0.01631]
[1765562326401,0.0001162,90110.0,90109.0,0.26193341]
[1765562326712,0.0001162,90110.0,90109.0,0.26293341]
[1765562326913,0.0001162,90110.0,90109.0,0.01731]
[1765562327578,0.0001162,90110.0,90109.0,0.04098]
[1765562327988,0.0001162,90110.0,90109.0,0.04198]
[1765562331995,0.0001162,90110.0,90109.0,0.08518]
[1765562332644,0.0001162,90110.0,90109.0,0.13519839]
[1765562332776,0.3017941,90138.0,90132.0,0.23299077]
[1765562332989,0.01109434,90136.0,90133.0,0.01109471]
[1765562333194,0.01109422,90137.0,90133.0,0.01109471]
[1765562333797,0.01109422,90137.0,90134.0,0.01109459]
[1765562334202,0.001,90136.0,90134.0,0.01109459]
[1765562334404,0.01109422,90137.0,90134.0,0.01109459]
[1765562334597,0.01109422,90137.0,90133.0,0.03516471]
[1765562334598,0.01109434,90136.0,90133.0,0.02407]
[1765562334911,0.01109459,90134.0,90131.0,0.01022]
[1765562335358,0.01783821,90134.0,90131.0,0.01022]
[1765562336127,0.23973198,90134.0,90131.0,0.01022]
[1765562336318,0.22189618,90133.0,90131.0,0.01022]
[1765562336630,0.01109459,90134.0,90131.0,0.01122]
[1765562336978,0.00674362,90134.0,90131.0,0.24421368]
[1765562337154,0.00824513,90134.0,90131.0,0.01209496]
[1765562337481,0.00038747,90138.0,90135.0,0.01109446]
[1765562337682,0.00038747,90138.0,90136.0,0.22188692]
[1765562337828,0.00038747,90138.0,90134.0,0.24916432]
[1765562337829,0.00038747,90138.0,90134.0,0.01109459]
[1765562338034,0.00038747,90138.0,90135.0,0.02407]
[1765562338230,0.01148157,90138.0,90136.0,0.02913434]
[1765562338435,0.01148157,90138.0,90137.0,0.01618]
[1765562338843,0.01148157,90138.0,90137.0,0.04025]
[1765562339156,0.00038747,90138.0,90137.0,0.04025]
[1765562339366,0.00038747,90138.0,90137.0,0.26213446]
[1765562339633,0.00038747,90138.0,90137.0,0.27337253]
[1765562339865,0.00038747,90138.0,90137.0,0.05148807]
[1765562340796,0.00038747,90138.0,90137.0,0.02741807]
[1765562341005,0.23298438,90135.0,90128.0,0.22190651]
[1765562341300,0.01109446,90135.0,90132.0,0.01109483]
[1765562341458,0.01109459,90134.0,90130.0,0.01022]
[1765562341662,0.02512151,90134.0,90127.0,0.01109545]
[1765562341865,0.02512151,90134.0,90123.0,0.01022]
[1765562341866,0.221914,90125.0,90123.0,0.01022]
[1765562342264,0.221914,90125.0,90118.0,0.01756]
[1765562342265,0.22192632,90120.0,90118.0,0.01756]
[1765562342483,0.22192632,90120.0,90112.0,0.0110973]
[1765562342686,0.23303512,90116.0,90114.0,0.01022]
[1765562342910,0.23303512,90116.0,90115.0,0.006207]
[1765562343115,0.22194109,90114.0,90113.0,0.01756]
[1765562343757,0.23303512,90116.0,90108.0,0.01022]
[1765562343758,0.01109742,90111.0,90108.0,0.01022]
[1765562344592,0.22195094,90110.0,90108.0,0.01022]
[1765562344962,0.01109742,90111.0,90107.0,0.02865791]
[1765562345185,0.01109717,90113.0,90110.0,0.02727754]
[1765562345342,0.01109705,90114.0,90111.0,0.01618]
[1765562345528,0.0110968,90116.0,90113.0,0.01022]
[1765562345724,0.00150151,90120.0,90116.0,0.22193606]
[1765562346065,0.00150151,90120.0,90119.0,0.01618]
[1765562346066,0.23452414,90120.0,90119.0,0.01618]
[1765562346311,0.23452414,90120.0,90111.0,0.01109742]
[1765562346312,0.0110968,90116.0,90111.0,0.01109742]
[1765562346529,0.01109643,90119.0,90116.0,0.0110968]
[1765562346833,0.01109656,90118.0,90115.0,0.01618]
[1765562347036,0.01109656,90118.0,90115.0,0.02727693]
[1765562347180,0.01109668,90117.0,90114.0,0.01109705]
[1765562347756,0.01109656,90118.0,90115.0,0.01109693]
[1765562347974,0.01109656,90118.0,90115.0,0.01209693]
[1765562348142,0.01109656,90118.0,90115.0,0.001]
[1765562348340,0.01109656,90118.0,90114.0,0.23303624]
[1765562348523,0.01109582,90124.0,90120.0,0.01109631]
[1765562348731,0.22189592,90133.0,90127.0,0.2219068]
[1765562348971,1.08634783,90150.0,90124.0,0.0264]
[1765562348972,0.23297462,90139.0,90134.0,0.01109459]
[1765562349113,0.01109348,90143.0,90136.0,0.0264]
[1765562349317,0.01109336,90144.0,90136.0,0.0264]
[1765562349668,0.01109311,90146.0,90143.0,0.01109348]
[1765562349876,0.0182242,90146.0,90141.0,0.01109373]
[1765562350080,0.00713109,90146.0,90145.0,0.0264]
[1765562350228,0.00038747,90146.0,90145.0,0.0264]
[1765562351069,0.00138747,90146.0,90145.0,0.0264]
[1765562351340,0.00038747,90146.0,90145.0,0.0264]
[1765562352537,0.00713109,90146.0,90145.0,0.0264]
[1765562352738,0.00713109,90146.0,90145.0,0.0274]
[1765562353269,0.00713109,90146.0,90145.0,0.01122]
[1765562353451,0.00713109,90146.0,90145.0,0.001]
[1765562354236,0.00038747,90146.0,90145.0,0.001]
[1765562354862,0.00038747,90146.0,90145.0,0.01718]
[1765562355076,0.00038747,90146.0,90145.0,0.04125]
[1765562355292,0.00038747,90146.0,90145.0,0.01718]
[1765562355533,0.00038747,90146.0,90145.0,0.001]
[1765562358745,0.01070733,90146.0,90145.0,0.001]
[1765562358869,0.00038747,90146.0,90145.0,0.001]
[1765562359301,0.01070854,90146.0,90145.0,0.001]
[1765562361563,0.00038747,90146.0,90145.0,0.001]
[1765562362276,0.00038747,90146.0,90145.0,0.04228]
[1765562362903,0.00038747,90146.0,90145.0,0.001]
[1765562363108,0.04057898,90146.0,90145.0,0.001]
[1765562363312,0.05090005,90146.0,90145.0,0.001]
[1765562363768,0.04057898,90146.0,90145.0,0.001]
[1765562364522,0.01109434,90136.0,90133.0,0.01756]
[1765562364854,0.23298337,90136.0,90134.0,0.02718776]
[1765562365374,0.02260397,90139.0,90134.0,0.02718776]
[1765562365375,0.01109422,90137.0,90134.0,0.02718776]
[1765562365608,0.23298061,90137.0,90134.0,0.02718776]
[1765562366177,0.22188938,90135.0,90134.0,0.02718776]
[1765562366776,0.23298061,90137.0,90134.0,0.02718776]
[1765562366981,0.23298061,90137.0,90135.0,0.01318465]
[1765562368202,0.23298061,90137.0,90135.0,0.01418465]
[1765562368878,0.0110941,90138.0,90135.0,0.01418465]
[1765562369039,0.23297801,90138.0,90135.0,0.01418465]
[1765562369346,0.22188692,90136.0,90135.0,0.001]
[1765562369530,0.28024692,90136.0,90135.0,0.001]
[1765562369727,0.30377692,90136.0,90135.0,0.001]
[1765562369928,0.26057692,90136.0,90135.0,0.001]
[1765562370366,0.23299699,90130.0,90126.0,0.01109557]
[1765562370766,0.2330022,90128.0,90125.0,0.0110957]
[1765562370966,0.23300643,90127.0,90123.0,0.01109594]
[1765562371210,0.01109545,90127.0,90123.0,0.01109594]
[1765562371614,0.01109557,90126.0,90121.0,0.24323942]
[1765562371773,0.01109545,90127.0,90123.0,0.01109594]
[1765562372200,0.0110952,90129.0,90126.0,0.01109557]
[1765562372410,0.01109533,90128.0,90125.0,0.0110957]
[1765562372574,0.23300168,90129.0,90125.0,0.0110957]
[1765562372776,0.01109533,90128.0,90125.0,0.0110957]
[1765562372990,0.01109496,90131.0,90128.0,0.22190637]
[1765562373197,0.01109533,90128.0,90125.0,0.0110957]
[1765562373397,0.22190415,90129.0,90126.0,0.01109557]
[1765562373601,0.0110952,90129.0,90125.0,0.0110957]
[1765562374237,0.01109533,90128.0,90125.0,0.0110957]
[1765562374571,0.0120952,90129.0,90125.0,0.0110957]
[1765562374748,0.001,90129.0,90126.0,0.01109557]
[1765562375576,0.01109483,90132.0,90129.0,0.0110952]
[1765562375896,0.01109496,90131.0,90127.0,0.23300268]
[1765562376099,0.01109483,90132.0,90128.0,0.01109533]
[1765562376320,0.01109483,90132.0,90129.0,0.0110952]
[1765562376525,0.23298693,90134.0,90129.0,0.0110952]
[1765562376724,0.01109459,90134.0,90129.0,0.0110952]
[1765562377399,0.01109459,90134.0,90130.0,0.01109508]
[1765562377733,0.01109483,90132.0,90129.0,0.0120952]
[1765562378175,0.01109483,90132.0,90129.0,0.0110952]
[1765562378374,0.01109459,90134.0,90129.0,0.0110952]
[1765562378588,0.01109459,90134.0,90130.0,0.001]
[1765562379154,0.01109471,90133.0,90130.0,0.001]
[1765562379376,0.23299115,90133.0,90130.0,0.001]
[1765562379805,0.01109422,90137.0,90133.0,0.01109471]
[1765562380556,0.25859373,90141.0,90136.0,0.01645]
[1765562380557,0.2475,90141.0,90136.0,0.01645]
[1765562380761,0.01109385,90140.0,90137.0,0.01645]
[1765562381311,0.01109385,90140.0,90137.0,0.02754422]
[1765562381482,0.01109385,90140.0,90137.0,0.01109422]
[1765562381659,0.01109385,90140.0,90137.0,0.23297803]
[1765562381872,0.25859373,90141.0,90136.0,0.01109434]
[1765562382076,0.01209385,90140.0,90136.0,0.01109434]
[1765562382506,0.001,90140.0,90137.0,0.01109422]
[1765562383060,0.001,90140.0,90139.0,0.22187954]
[1765562383283,0.2475,90141.0,90139.0,0.22187954]
[1765562383484,0.25859373,90141.0,90137.0,0.001]
[1765562383894,0.22187943,90140.0,90137.0,0.001]
[1765562384111,0.22187943,90140.0,90136.0,0.01109434]
[1765562384326,0.23297328,90140.0,90139.0,0.001]
[1765562384765,0.01109385,90140.0,90139.0,0.001]
[1765562384913,0.01109385,90140.0,90135.0,0.23298165]
[1765562385106,0.01109397,90139.0,90137.0,0.001]
[1765562385552,0.23297543,90139.0,90137.0,0.001]
[1765562385718,0.01109397,90139.0,90137.0,0.001]
[1765562385926,0.23297594,90139.0,90137.0,0.001]
[1765562386120,0.23297582,90139.0,90137.0,0.001]
[1765562386529,0.0110941,90138.0,90133.0,0.23298713]
[1765562386730,0.01109422,90137.0,90135.0,0.001]
[1765562387209,0.01109422,90137.0,90133.0,0.01109471]
[1765562387412,0.01109434,90136.0,90133.0,0.01109471]
[1765562387632,0.01109422,90137.0,90133.0,0.05146712]
[1765562387842,0.01109422,90137.0,90133.0,0.01109471]
[1765562388290,0.01109422,90137.0,90134.0,0.01109459]
[1765562389126,0.01109397,90139.0,90135.0,0.01109446]
[1765562389384,0.0110941,90138.0,90135.0,0.01109446]
[1765562389990,0.23297554,90139.0,90136.0,0.01109434]
[1765562390415,0.0110941,90138.0,90135.0,0.01109446]
[1765562391284,0.0110941,90138.0,90134.0,0.01109459]
[1765562391285,0.0110941,90138.0,90136.0,0.001]
[1765562391728,0.0110941,90138.0,90135.0,0.01109446]
[1765562392152,0.0110941,90138.0,90135.0,0.01209446]
[1765562393447,0.01109397,90139.0,90136.0,0.23298126]
[1765562394051,0.2475,90141.0,90139.0,0.22187919]
[1765562394230,0.2475,90141.0,90140.0,0.02548]
[1765562394439,0.2475,90141.0,90140.0,0.04977]
[1765562394619,0.00188898,90146.0,90145.0,0.26506477]
[1765562394620,0.00038747,90146.0,90145.0,0.26506477]
[1765562394818,0.00038747,90146.0,90145.0,0.30461477]
[1765562395853,0.00038747,90146.0,90145.0,0.35463316]
[1765562396567,0.00038747,90146.0,90145.0,0.38795188]
[1765562396786,0.00038747,90146.0,90145.0,0.38995188]
[1765562397146,0.00038747,90146.0,90145.0,0.38795188]
[1765562397574,0.00038747,90146.0,90145.0,0.39295188]
[1765562399928,0.00038747,90146.0,90145.0,0.38795188]
[1765562400130,0.00038747,90146.0,90145.0,0.39095188]
[1765562400344,0.01108856,90183.0,90145.0,0.68365188]
[1765562400547,0.00011626,90183.0,90182.0,0.02548]
[1765562400720,0.00011626,90183.0,90182.0,0.23199374]
[1765562400922,0.00011626,90183.0,90182.0,0.02548]
[1765562401083,0.00011626,90183.0,90182.0,0.04977]
[1765562401287,0.00011626,90183.0,90180.0,0.01022]
[1765562401508,0.01583,90181.0,90177.0,0.0110893]
[1765562401733,0.01108881,90181.0,90178.0,0.01108917]
[1765562401944,0.22339112,90183.0,90180.0,0.02634893]
[1765562401945,0.00161777,90183.0,90180.0,0.02634893]
[1765562402185,0.00161777,90183.0,90182.0,0.23199374]
[1765562402389,0.00161777,90183.0,90182.0,0.01022]
[1765562402541,0.00161777,90183.0,90182.0,0.02548]
[1765562402995,0.00011626,90183.0,90182.0,0.04977]
[1765562403152,0.00111626,90183.0,90182.0,0.11053]
[1765562403413,0.00111626,90183.0,90182.0,0.15090241]
[1765562403821,0.00011626,90183.0,90182.0,0.15090241]
[1765562404030,0.00011626,90183.0,90182.0,0.09014241]
[1765562404277,0.00011626,90183.0,90182.0,0.10770241]
[1765562404480,0.00011626,90183.0,90182.0,0.01022]
[1765562404956,0.22188754,90183.0,90182.0,0.01022]
[1765562405154,0.01108868,90182.0,90177.0,0.0110893]
[1765562405352,0.00161777,90183.0,90180.0,0.23286672]
[1765562405568,0.00161777,90183.0,90182.0,0.02548]
[1765562405775,0.00011626,90183.0,90182.0,0.06868]
[1765562405974,0.00011626,90183.0,90182.0,0.09297]
[1765562406494,0.00011626,90183.0,90182.0,0.14298839]
[1765562407551,0.00011626,90183.0,90182.0,0.14398839]
[1765562407757,0.00011626,90183.0,90182.0,0.05077]
[1765562408780,0.00011626,90183.0,90182.0,0.01122]
[1765562409535,0.04128777,90183.0,90182.0,0.001]
[1765562409741,0.04803139,90183.0,90182.0,0.001]
[1765562410264,0.09123139,90183.0,90182.0,0.001]
[1765562410470,0.01109077,90165.0,90162.0,0.01022]
[1765562410684,0.01109114,90162.0,90159.0,0.02865151]
[1765562410907,0.01109114,90162.0,90159.0,0.01756]
[1765562411100,0.01109065,90166.0,90161.0,0.01109127]
[1765562411340,0.01109065,90166.0,90162.0,0.01109114]
[1765562411537,0.01109065,90166.0,90163.0,0.01109102]
[1765562411798,0.23290633,90165.0,90162.0,0.001]
[1765562412207,0.22182786,90160.0,90159.0,0.01756]
[1765562412619,0.23765786,90160.0,90159.0,0.01756]
[1765562412821,0.01109176,90157.0,90153.0,0.01109225]
[1765562413015,0.01109176,90157.0,90154.0,0.01109213]
[1765562413334,0.01109139,90160.0,90157.0,0.01109176]
[1765562413549,0.22182024,90164.0,90159.0,0.01209151]
[1765562413550,0.0110909,90164.0,90159.0,0.01209151]
[1765562413752,0.01109114,90162.0,90159.0,0.01209151]
[1765562413948,0.0110909,90164.0,90160.0,0.01109139]
[1765562414218,0.0110909,90164.0,90161.0,0.01109127]
[1765562414424,0.01259216,90166.0,90163.0,0.01109102]
[1765562414564,0.01109102,90163.0,90159.0,0.01109151]
[1765562414757,0.01109102,90163.0,90157.0,0.01022]
[1765562414958,0.01109102,90163.0,90159.0,0.22182947]
[1765562415196,0.01109077,90165.0,90161.0,0.01109127]
[1765562415374,0.01109102,90163.0,90162.0,0.02673242]
[1765562415589,0.01109213,90154.0,90151.0,0.01756]
[1765562415798,0.22184508,90153.0,90151.0,0.01756]
[1765562416440,0.01109237,90152.0,90149.0,0.01022]
[1765562416659,0.01109237,90152.0,90149.0,0.02131274]
[1765562416826,0.00011619,90152.0,90149.0,0.02131274]
[1765562417004,0.00011619,90152.0,90151.0,0.01526]
[1765562417387,0.00011619,90152.0,90151.0,0.03955]
[1765562418044,0.00011619,90152.0,90151.0,0.05605779]
[1765562418557,0.00011619,90152.0,90151.0,0.0421]
[1765562419558,0.00011619,90152.0,90151.0,0.1029184]
[1765562420097,0.00011619,90152.0,90151.0,0.0863]
[1765562420297,0.00011619,90152.0,90151.0,0.10192882]
[1765562420636,0.00011619,90152.0,90151.0,0.44142686]
[1765562420836,0.01108868,90182.0,90177.0,0.0110893]
[1765562421075,0.01108905,90179.0,90176.0,0.01108942]
[1765562421281,0.0110893,90177.0,90173.0,0.01022]
[1765562421612,0.01108893,90180.0,90174.0,0.22179342]
[1765562421927,0.01108905,90179.0,90176.0,0.01108942]
[1765562422121,0.2328805,90175.0,90172.0,0.01756]
[1765562422323,0.22179578,90174.0,90173.0,0.00931609]
[1765562422552,0.22179578,90174.0,90172.0,0.01756]
[1765562422683,0.00150151,90179.0,90176.0,0.01108942]
[1765562422887,0.01259056,90179.0,90178.0,0.01611]
[1765562423089,0.01108954,90175.0,90172.0,0.01756]
[1765562423520,0.01108954,90175.0,90174.0,0.01611]
[1765562424128,0.00150151,90179.0,90176.0,0.23287724]
[1765562424296,0.22179096,90175.0,90174.0,0.01611]
[1765562425132,0.01108917,90178.0,90174.0,0.01108967]
[1765562425389,0.0110893,90177.0,90172.0,0.01108991]
[1765562425562,0.01108942,90176.0,90172.0,0.01108991]
[1765562425766,0.01108954,90175.0,90171.0,0.01756]
[1765562425985,0.01259056,90179.0,90175.0,0.01108954]
[1765562426175,0.01108917,90178.0,90175.0,0.01108954]
[1765562426423,0.01108967,90174.0,90171.0,0.01756]
[1765562426710,0.2497585,90176.0,90150.0,0.05001839]
[1765562426711,0.22182063,90163.0,90157.0,0.01109176]
[1765562426935,0.22182063,90163.0,90156.0,0.24314759]
[1765562426936,0.01109028,90169.0,90164.0,0.22181802]
[1765562427067,0.01109004,90171.0,90166.0,0.02720065]
[1765562427266,0.01109004,90171.0,90170.0,0.01022]
[1765562427674,0.01109188,90156.0,90153.0,0.23293697]
[1765562427897,0.01109213,90154.0,90150.0,0.01109262]
[1765562428064,0.01109188,90156.0,90152.0,0.01109237]
[1765562428261,0.01109028,90169.0,90162.0,0.01109114]
[1765562428502,0.23290617,90166.0,90161.0,0.01109127]
[1765562428700,0.23290617,90166.0,90160.0,0.22182566]
[1765562428701,0.01109077,90165.0,90162.0,0.01109114]
[1765562428898,0.0110909,90164.0,90161.0,0.01022]
[1765562429364,0.01109237,90152.0,90146.0,0.05789957]
[1765562429667,0.22185246,90150.0,90145.0,0.01109323]
[1765562429841,0.22185246,90150.0,90142.0,0.07652039]
[1765562430041,0.23294034,90152.0,90149.0,0.02633]
[1765562430453,0.2218519,90151.0,90149.0,0.01022]
[1765562430655,0.22185492,90149.0,90140.0,0.01109385]
[1765562430857,0.2329444,90151.0,90149.0,0.002]
[1765562431026,0.22185492,90149.0,90144.0,0.01022]
[1765562432160,0.22186477,90145.0,90144.0,0.01022]
[1765562432358,0.01109299,90147.0,90144.0,0.01022]
[1765562432564,0.01109299,90147.0,90144.0,0.02633]
[1765562433367,0.22183103,90159.0,90144.0,0.02633]
[1765562433368,0.23293954,90153.0,90149.0,0.01109274]
[1765562433690,0.01109237,90152.0,90149.0,0.01109274]
[1765562434087,0.23293954,90153.0,90149.0,0.01109274]
[1765562434321,0.01109127,90161.0,90155.0,0.22184016]
[1765562434610,0.01109151,90159.0,90154.0,0.02720213]
[1765562434829,0.01109139,90160.0,90157.0,0.01109176]
[1765562435034,0.01109127,90161.0,90157.0,0.01109176]
[1765562435232,0.01109139,90160.0,90156.0,0.01109188]
[1765562435382,0.01109151,90159.0,90156.0,0.01109188]
[1765562435882,0.01109139,90160.0,90156.0,0.23292885]
[1765562436105,0.23291953,90160.0,90155.0,0.011092]
[1765562436430,0.01109127,90161.0,90159.0,0.01022]
[1765562437074,0.01109139,90160.0,90156.0,0.02231188]
[1765562437290,0.23292183,90159.0,90156.0,0.01022]
[1765562437522,0.01109151,90159.0,90156.0,0.01022]
[1765562438147,0.23292422,90159.0,90156.0,0.01022]
[1765562438349,0.23292422,90159.0,90156.0,0.01122]
[1765562438962,0.01109151,90159.0,90156.0,0.01122]
[1765562439121,0.01109151,90159.0,90156.0,0.002]
[1765562439534,0.22183523,90158.0,90156.0,0.001]
[1765562439739,0.01579,90157.0,90156.0,0.001]
[1765562439939,0.03879,90157.0,90156.0,0.001]
[1765562440157,1.28629,90157.0,90156.0,0.001]
[1765562440364,1.32949,90157.0,90156.0,0.002]
[1765562440751,1.32949,90157.0,90156.0,0.001]
[1765562440958,0.01109446,90135.0,90132.0,0.01109483]
[1765562441135,0.01109446,90135.0,90132.0,0.00038747]
[1765562441546,0.0432,90133.0,90132.0,0.00038747]
[1765562441745,0.22189184,90134.0,90132.0,0.00038747]
[1765562441946,0.01109446,90135.0,90132.0,0.00038747]
[1765562442149,0.01109446,90135.0,90134.0,0.01611]
[1765562442576,0.01109446,90135.0,90132.0,0.00038747]
[1765562442917,0.01109434,90136.0,90132.0,0.0114823]
[1765562443053,0.01109385,90140.0,90137.0,0.01109422]
[1765562443443,0.23296321,90143.0,90138.0,0.0110941]
[1765562443642,0.01109373,90141.0,90137.0,0.03567422]
[1765562443867,0.0110936,90142.0,90139.0,0.01109397]
[1765562444078,0.001,90140.0,90139.0,0.01109397]
[1765562444473,0.01109385,90140.0,90135.0,0.02131446]
[1765562444885,0.01109385,90140.0,90136.0,0.01109434]
[1765562445092,0.01109397,90139.0,90136.0,0.01109434]
[1765562445293,0.0110941,90138.0,90135.0,0.02131446]
[1765562445498,0.0110941,90138.0,90132.0,0.00038747]
[1765562445499,0.01109446,90135.0,90132.0,0.00038747]
[1765562446533,0.23298622,90135.0,90132.0,0.00038747]
[1765562446719,0.01109434,90136.0,90132.0,0.00038747]
[1765562446926,0.0110941,90138.0,90134.0,0.01109459]
[1765562447081,0.0110941,90138.0,90135.0,0.02633]
[1765562447482,0.22188446,90137.0,90135.0,0.02633]
[1765562448353,0.0110941,90138.0,90132.0,0.0114823]
[1765562448553,0.01109446,90135.0,90132.0,0.00038747]
[1765562449075,0.01109446,90135.0,90132.0,0.00138747]
[1765562449275,0.22189184,90134.0,90132.0,0.00038747]
[1765562450115,0.03879,90133.0,90132.0,0.00138747]
[1765562450311,0.04029151,90133.0,90132.0,0.00138747]
[1765562450734,0.04029151,90133.0,90132.0,0.00038747]
[1765562451270,0.08349151,90133.0,90132.0,0.00038747]
[1765562452504,0.04029151,90133.0,90132.0,0.00038747]
[1765562452952,0.04229151,90133.0,90132.0,0.00038747]
[1765562453154,0.04329151,90133.0,90132.0,0.00038747]
[1765562453378,0.04229151,90133.0,90132.0,0.00038747]
[1765562453819,0.04429151,90133.0,90132.0,0.00038747]
[1765562454024,0.02129151,90133.0,90132.0,0.00038747]
[1765562454454,0.04560151,90133.0,90132.0,0.00038747]
[1765562454655,0.05234513,90133.0,90132.0,0.00038747]
[1765562455270,0.00550151,90133.0,90132.0,0.00038747]
[1765562455481,0.00550151,90133.0,90132.0,0.01676747]
[1765562455685,0.004,90133.0,90132.0,0.26846504]
[1765562456341,0.004,90133.0,90132.0,0.31166504]
[1765562456973,0.23402826,90152.0,90143.0,0.01109348]
[1765562456974,0.01109286,90148.0,90143.0,0.01109348]
[1765562457185,0.01109225,90153.0,90132.0,0.08976827]
[1765562457186,0.01109225,90153.0,90147.0,0.23295074]
[1765562457402,0.01109225,90153.0,90151.0,0.01022]
[1765562457620,0.01109225,90153.0,90152.0,0.0280864]
[1765562458030,0.01109225,90153.0,90151.0,0.01022]
[1765562458436,0.23293786,90153.0,90151.0,0.01022]
[1765562458650,0.01109176,90157.0,90151.0,0.0213125]
[1765562458861,0.01109127,90161.0,90158.0,0.0266]
[1765562459072,0.01109127,90161.0,90158.0,0.03769163]
[1765562459274,0.01109127,90161.0,90158.0,0.0266]
[1765562459705,0.01687027,90170.0,90163.0,0.01109102]
[1765562459938,0.23289577,90170.0,90163.0,0.01109102]
[1765562460149,0.01109028,90169.0,90165.0,0.01109077]
[1765562460367,0.01109028,90169.0,90163.0,0.01109102]
[1765562460368,0.01108942,90176.0,90169.0,0.0266]
[1765562460587,0.23767326,90170.0,90159.0,0.01109151]
[1765562460804,0.01108979,90173.0,90123.0,0.03331935]
[1765562460805,0.01108979,90173.0,90168.0,0.0110904]
[1765562461014,0.01109004,90171.0,90167.0,0.01109053]
[1765562461247,0.002,90170.0,90169.0,0.01022]
[1765562461462,0.002,90170.0,90169.0,0.02131028]
[1765562461668,0.002,90170.0,90169.0,0.06451028]
[1765562461893,0.002,90170.0,90169.0,0.15445867]
[1765562462113,0.002,90170.0,90169.0,0.40195867]
[1765562462330,0.0004,90190.0,90189.0,0.56247492]
[1765562462550,0.00051617,90190.0,90189.0,0.66316492]
[1765562464089,0.00051617,90190.0,90189.0,0.66916492]
[1765562464299,0.00051617,90190.0,90189.0,0.66716492]
[1765562464511,0.00051617,90190.0,90189.0,0.69502837]
[1765562465374,0.00051617,90190.0,90189.0,0.69102837]
[1765562465579,0.00051617,90190.0,90189.0,0.69502837]
[1765562466005,0.00051617,90190.0,90189.0,0.69802837]
[1765562466211,0.00051617,90190.0,90189.0,0.65482837]
[1765562466447,0.00051617,90190.0,90189.0,0.07479345]
[1765562466657,0.00051617,90190.0,90189.0,0.06880345]
[1765562466872,0.00201768,90190.0,90189.0,0.03186345]
[1765562467081,0.01788768,90190.0,90189.0,0.004]
[1765562467314,0.01769884,90190.0,90189.0,0.004]
[1765562467519,0.2217762,90181.0,90180.0,0.01756]
[1765562467724,0.2217762,90181.0,90180.0,0.02388892]
[1765562468144,0.22327771,90181.0,90180.0,0.01756]
[1765562468489,0.22327771,90181.0,90176.0,0.01108942]
[1765562468490,0.23436652,90181.0,90176.0,0.01108942]
[1765562468695,0.01259032,90181.0,90177.0,0.23287449]
[1765562468919,0.00150151,90181.0,90179.0,0.22178112]
[1765562469344,0.00150151,90181.0,90180.0,0.001]
[1765562469907,0.00150151,90181.0,90177.0,0.0110893]
[1765562470069,0.01259032,90181.0,90179.0,0.001]
[1765562470276,0.01108967,90174.0,90168.0,0.04111]
[1765562470468,0.01259044,90180.0,90158.0,0.03887163]
[1765562470469,0.01109114,90162.0,90158.0,0.03887163]
[1765562470677,0.01109077,90165.0,90159.0,0.01109151]
[1765562470881,0.01109077,90165.0,90162.0,0.01109114]
[1765562471092,0.01109053,90167.0,90163.0,0.01109102]
[1765562471444,0.01109065,90166.0,90163.0,0.01109102]
[1765562471659,0.01109053,90167.0,90163.0,0.23291081]
[1765562471858,0.01108954,90175.0,90170.0,0.01109016]
[1765562472215,0.00021116,90190.0,90177.0,0.23287484]
[1765562472216,0.00150151,90180.0,90177.0,0.23287484]
[1765562472485,0.00150151,90180.0,90179.0,0.01638]
[1765562472684,0.00150151,90180.0,90174.0,0.02130967]
[1765562472685,0.01108905,90179.0,90174.0,0.02130967]
[1765562472907,0.0110893,90177.0,90174.0,0.01022]
[1765562473239,0.2217885,90176.0,90174.0,0.01022]
[1765562473685,0.01108991,90172.0,90169.0,0.02778]
[1765562473891,0.2328805,90175.0,90169.0,0.03887028]
[1765562474100,0.23287541,90177.0,90173.0,0.01108979]
[1765562474300,0.23285578,90185.0,90179.0,0.22178112]
[1765562474506,0.00021116,90190.0,90187.0,0.01108807]
[1765562474862,0.00021116,90190.0,90189.0,0.01638]
[1765562475082,0.02828,90188.0,90180.0,0.23933796]
[1765562475213,0.02828,90188.0,90169.0,0.03477]
[1765562475214,0.22177374,90182.0,90181.0,0.01208757]
[1765562475416,0.22180217,90171.0,90170.0,0.01756]
[1765562476512,0.22180217,90171.0,90169.0,0.01022]
[1765562476721,0.23288828,90172.0,90170.0,0.001]
[1765562476925,0.01108991,90172.0,90170.0,0.001]
[1765562477346,0.23288857,90172.0,90170.0,0.001]
[1765562477628,0.01108979,90173.0,90170.0,0.01209016]
[1765562477834,0.23288813,90173.0,90170.0,0.001]
[1765562478042,0.2379708,90171.0,90170.0,0.001]
[1765562478245,0.28267231,90171.0,90170.0,0.001]
[1765562478450,0.22182786,90160.0,90159.0,0.01756]
[1765562478660,0.01109114,90162.0,90159.0,0.01756]
[1765562478870,0.01109114,90162.0,90159.0,0.02865151]
[1765562479171,0.0110909,90164.0,90160.0,0.01109139]
[1765562479352,0.0110909,90164.0,90161.0,0.01109127]
[1765562479551,0.01109077,90165.0,90161.0,0.01109127]
[1765562479760,0.0110909,90164.0,90159.0,0.01756]
[1765562479970,0.23291455,90162.0,90159.0,0.01756]
[1765562480139,0.01109114,90162.0,90159.0,0.01756]
[1765562480341,0.01109102,90163.0,90159.0,0.02865151]
[1765562480589,0.0110904,90168.0,90162.0,0.01655]
[1765562480793,0.01109225,90153.0,90146.0,0.01109311]
[1765562481142,0.01109237,90152.0,90149.0,0.01109274]
[1765562481551,0.01109225,90153.0,90149.0,0.01109274]
[1765562481769,0.011092,90155.0,90152.0,0.01655]
[1765562481980,0.0110909,90164.0,90159.0,0.01109151]
[1765562482189,0.00250151,90168.0,90155.0,0.01655]
[1765562482190,0.22183604,90157.0,90155.0,0.01655]
[1765562482400,0.01109213,90154.0,90147.0,0.01109299]
[1765562482634,0.01109213,90154.0,90151.0,0.0110925]
[1765562482839,0.011092,90155.0,90151.0,0.0110925]
[1765562483038,0.23292958,90156.0,90152.0,0.01109237]
[1765562483039,0.01109188,90156.0,90152.0,0.01109237]
[1765562483322,0.01109188,90156.0,90153.0,0.01109225]
[1765562483528,0.01109188,90156.0,90151.0,0.0110925]
[1765562483529,0.011092,90155.0,90151.0,0.0110925]
[1765562483747,0.22183748,90157.0,90145.0,0.02131323]
[1765562483948,0.01109176,90157.0,90154.0,0.01109213]
[1765562485192,0.01109188,90156.0,90149.0,0.01109274]
[1765562485395,0.01109237,90152.0,90149.0,0.01109274]
[1765562485815,0.23292992,90156.0,90151.0,0.0276425]
[1765562486164,0.23293991,90152.0,90148.0,0.01109286]
[1765562486378,0.01109286,90148.0,90145.0,0.01022]